lending/lending_fUSD_20250719
["ID","MTS","AMOUNT","RATE_DAILY","PERIOD"]
[373279853,1752927076499,-480.0,0.00019835,2]
[373279854,1752927076508,-480.0,0.00019835,2]
[373279855,1752927076518,-151.0,0.00019835,2]
[373279856,1752927076527,-480.0,0.00019835,2]
[373279857,1752927076536,-480.0,0.00019835,2]
[373279858,1752927076546,-4536.51,0.00019835,2]
[373279859,1752927076555,-482.89,0.00019835,2]
[373279860,1752927076565,-480.0,0.00019835,2]
[373279861,1752927076574,-620.34,0.00019835,2]
[373279862,1752927076588,-480.0,0.00019835,2]
[373279863,1752927076597,-480.0,0.00019835,2]
[373279864,1752927076607,-625.37,0.00019835,2]
[373279865,1752927076616,-480.0,0.00019835,2]
[373279866,1752927076626,-480.0,0.00019835,2]
[373279867,1752927076636,-996.66,0.00019835,2]
[373279868,1752927076645,-472.5,0.00019835,2]
[373279869,1752927076655,-480.0,0.00019835,2]
[373279870,1752927076665,-7262.97,0.00019835,2]
[373279871,1752927076676,-480.0,0.00019835,2]
[373279872,1752927076686,-480.0,0.00019835,2]
[373279873,1752927076696,-480.0,0.00019835,2]
[373279874,1752927076705,-480.0,0.00019835,2]
[373279875,1752927076715,-480.0,0.00019835,2]
[373279876,1752927076725,-814.82,0.00019835,2]
[373279877,1752927076735,-480.0,0.00019835,2]
[373279878,1752927076744,-814.36,0.00019835,2]
[373279879,1752927076753,-480.0,0.00019835,2]
[373279880,1752927076763,-480.0,0.00019835,2]
[373279881,1752927076772,-495.52,0.00019835,2]
[373279882,1752927076781,-861.88,0.00019835,2]
[373279883,1752927076791,-480.0,0.00019835,2]
[373279884,1752927076800,-151.0,0.00019835,2]
[373279885,1752927076810,-480.0,0.00019835,2]
[373279886,1752927076819,-945.47,0.00019835,2]
[373279887,1752927076828,-553.5,0.00019835,2]
[373279888,1752927076837,-480.0,0.00019835,2]
[373279889,1752927076847,-480.0,0.00019835,2]
[373279890,1752927076857,-480.0,0.00019835,2]
[373279891,1752927076866,-497.75,0.00019835,2]
[373279892,1752927076876,-519.08,0.00019835,2]
[373279893,1752927076885,-569.84,0.00019835,2]
[373279894,1752927076894,-676.41659859,0.00019845,2]
[373279895,1752927076903,-676.4165986,0.00019845,2]
[373279896,1752927076913,-306.47943934,0.00019895,2]
[373279897,1752927076922,-2000.0,0.00019899,2]
[373279898,1752927076931,-210.37288303,0.000199,2]
[373279899,1752927076941,-293.00924939,0.00019918,4]
[373279900,1752927076950,-159.98459929,0.00019918,4]
[373279901,1752927076960,-176.28418837,0.00019918,4]
[373279902,1752927076970,-217.92720885,0.00019918,4]
[373279903,1752927076979,-180.01559986,0.00019918,4]
[373279904,1752927076987,-161.92783028,0.00019918,4]
[373279905,1752927076996,-155.5247749,0.00019918,4]
[373279906,1752927077006,-1000.0,0.00019921,2]
[373279907,1752927077016,-500.0,0.00019944,2]
[373279908,1752927077025,-500.0,0.00019944,2]
[373279909,1752927077035,-480.0,0.00019945,2]
[373279910,1752927077044,-480.0,0.00019945,2]
[373279911,1752927077053,-366.8,0.00019945,2]
[373279912,1752927077063,-320.0,0.00019945,2]
[373279913,1752927077072,-480.0,0.00019945,2]
[373279914,1752927077081,-491.25,0.00019945,2]
[373279915,1752927077091,-480.0,0.00019945,2]
[373279916,1752927077100,-480.0,0.00019945,2]
[373279917,1752927077109,-480.0,0.00019945,2]
[373279918,1752927077118,-480.0,0.00019945,2]
[373279919,1752927077128,-527.7,0.00019945,2]
[373279920,1752927077138,-510.82,0.00019945,2]
[373279921,1752927077147,-480.0,0.00019945,2]
[373279922,1752927077157,-480.0,0.00019945,2]
[373279923,1752927077166,-480.0,0.00019945,2]
[373279924,1752927077175,-368.37,0.00019945,2]
[373279925,1752927077190,-480.0,0.00019945,2]
[373279926,1752927077199,-480.0,0.00019945,2]
[373279927,1752927077208,-492.22,0.00019945,2]
[373279928,1752927077218,-480.0,0.00019945,2]
[373279929,1752927077227,-480.0,0.00019945,2]
[373279930,1752927077236,-480.0,0.00019945,2]
[373279931,1752927077245,-604.18,0.00019945,2]
[373279932,1752927077254,-480.0,0.00019945,2]
[373279933,1752927077264,-564.73,0.00019945,2]
[373279934,1752927077273,-480.0,0.00019945,2]
[373279935,1752927077283,-480.0,0.00019945,2]
[373279936,1752927077304,-480.0,0.00019945,2]
[373279937,1752927077314,-480.0,0.00019945,2]
[373279938,1752927077323,-480.0,0.00019945,2]
[373279939,1752927077332,-480.0,0.00019945,2]
[373279940,1752927077342,-368.82,0.00019945,2]
[373279941,1752927077352,-480.0,0.00019945,2]
[373279942,1752927077361,-480.0,0.00019945,2]
[373279943,1752927077371,-166.209519,0.00019945,2]
[373279944,1752927077380,-480.0,0.00019945,2]
[373279945,1752927077389,-480.0,0.00019945,2]
[373279946,1752927077398,-426.16,0.00019945,2]
[373279947,1752927077407,-480.0,0.00019945,2]
[373279948,1752927077416,-480.0,0.00019945,2]
[373279949,1752927077425,-480.0,0.00019945,2]
[373279950,1752927077435,-280.22084493,0.00019945,2]
[373279951,1752927077444,-480.0,0.00019945,2]
[373279952,1752927077453,-572.13,0.00019945,2]
[373279953,1752927077462,-480.0,0.00019945,2]
[373279954,1752927077473,-480.0,0.00019945,2]
[373279955,1752927077482,-480.0,0.00019945,2]
[373279956,1752927077491,-240.73,0.00019945,2]
[373279957,1752927077500,-480.0,0.00019945,2]
[373279958,1752927077509,-480.0,0.00019945,2]
[373279959,1752927077518,-480.0,0.00019945,2]
[373279960,1752927077527,-480.0,0.00019945,2]
[373279961,1752927077536,-480.0,0.00019945,2]
[373279962,1752927077545,-509.18,0.00019945,2]
[373279963,1752927077554,-480.0,0.00019945,2]
[373279964,1752927077563,-1272.92,0.00019945,2]
[373279965,1752927077573,-480.0,0.00019945,2]
[373279966,1752927077583,-480.0,0.00019945,2]
[373279967,1752927077592,-480.0,0.00019945,2]
[373279968,1752927077602,-632.75,0.00019945,2]
[373279969,1752927077611,-480.0,0.00019945,2]
[373279970,1752927077621,-632.62,0.00019945,2]
[373279971,1752927077631,-480.0,0.00019945,2]
[373279972,1752927077640,-480.0,0.00019945,2]
[373279973,1752927077650,-480.0,0.00019945,2]
[373279974,1752927077662,-480.0,0.00019945,2]
[373279975,1752927077672,-412.87,0.00019945,2]
[373279976,1752927077681,-679.94,0.00019945,2]
[373279977,1752927077690,-435.47520854,0.00019945,2]
[373279978,1752927077700,-480.0,0.00019945,2]
[373279979,1752927077710,-1585.57,0.00019945,2]
[373279980,1752927077720,-480.0,0.00019945,2]
[373279981,1752927077728,-503.15,0.00019945,2]
[373279982,1752927077737,-480.0,0.00019945,2]
[373279983,1752927077746,-376.95638075,0.00019945,2]
[373279984,1752927077756,-480.0,0.00019945,2]
[373279985,1752927077765,-571.95,0.00019945,2]
[373279986,1752927077774,-581.29,0.00019945,2]
[373279987,1752927077785,-218.02,0.00019945,2]
[373279988,1752927077794,-480.0,0.00019945,2]
[373279989,1752927077803,-480.0,0.00019945,2]
[373279990,1752927077812,-633.45,0.00019945,2]
[373279991,1752927077821,-490.15,0.00019945,2]
[373279992,1752927077830,-480.0,0.00019945,2]
[373279993,1752927077840,-480.0,0.00019945,2]
[373279994,1752927077849,-571.94,0.00019945,2]
[373279995,1752927077858,-1050.85,0.00019945,2]
[373279996,1752927077867,-217.08,0.00019945,2]
[373279997,1752927077877,-480.0,0.00019945,2]
[373279998,1752927077886,-1313.33,0.00019945,2]
[373279999,1752927077896,-480.0,0.00019945,2]
[373280000,1752927077904,-1036.910079,0.00019945,2]
[373280001,1752927077913,-480.0,0.00019945,2]
[373280002,1752927077922,-480.0,0.00019945,2]
[373280003,1752927077931,-480.0,0.00019945,2]
[373280004,1752927077940,-870.226778,0.00019945,2]
[373280005,1752927077949,-480.0,0.00019945,2]
[373280006,1752927077958,-900.893639,0.00019945,2]
[373280007,1752927077967,-1874.03,0.00019945,2]
[373280008,1752927077976,-480.0,0.00019945,2]
[373280009,1752927077986,-824.64,0.00019945,2]
[373280010,1752927077994,-480.0,0.00019945,2]
[373280011,1752927078003,-502.1,0.00019945,2]
[373280012,1752927078012,-1726.56,0.00019945,2]
[373280013,1752927078021,-480.0,0.00019945,2]
[373280014,1752927078030,-480.0,0.00019945,2]
[373280015,1752927078040,-480.0,0.00019945,2]
[373280016,1752927078050,-3664.0,0.00019945,2]
[373280017,1752927078060,-622.62,0.00019945,2]
[373280018,1752927078069,-480.0,0.00019945,2]
[373280019,1752927078078,-480.0,0.00019945,2]
[373280020,1752927078087,-247.03,0.00019945,2]
[373280021,1752927078096,-607.67,0.00019945,2]
[373280022,1752927078105,-480.0,0.00019945,2]
[373280023,1752927078114,-480.0,0.00019945,2]
[373280024,1752927078123,-480.0,0.00019945,2]
[373280025,1752927078133,-759.29,0.00019945,2]
[373280026,1752927078142,-622.7,0.00019945,2]
[373280027,1752927078152,-480.0,0.00019945,2]
[373280028,1752927078161,-1312.07,0.00019945,2]
[373280029,1752927078171,-1939.98,0.00019945,2]
[373280030,1752927078181,-1042.32,0.00019945,2]
[373280031,1752927078190,-480.0,0.00019945,2]
[373280032,1752927078199,-516.59,0.00019945,2]
[373280033,1752927078208,-480.0,0.00019945,2]
[373280034,1752927078217,-611.66,0.00019945,2]
[373280035,1752927078226,-480.0,0.00019945,2]
[373280036,1752927078235,-883.72,0.00019945,2]
[373280037,1752927078292,-480.0,0.00019945,2]
[373280038,1752927078302,-480.0,0.00019945,2]
[373280039,1752927078311,-1113.11,0.00019945,2]
[373280040,1752927078320,-480.0,0.00019945,2]
[373280041,1752927078330,-1761.18,0.00019945,2]
[373280042,1752927078339,-480.0,0.00019945,2]
[373280043,1752927078348,-480.0,0.00019945,2]
[373280044,1752927078357,-480.0,0.00019945,2]
[373280045,1752927078366,-671.88,0.00019945,2]
[373280046,1752927078375,-638.9,0.00019945,2]
[373280047,1752927078385,-480.0,0.00019945,2]
[373280048,1752927078394,-808.38,0.00019945,2]
[373280049,1752927078403,-480.0,0.00019945,2]
[373280050,1752927078412,-480.0,0.00019945,2]
[373280051,1752927078421,-587.14,0.00019945,2]
[373280052,1752927078430,-480.0,0.00019945,2]
[373280053,1752927078439,-480.0,0.00019945,2]
[373280054,1752927078448,-480.0,0.00019945,2]
[373280055,1752927078457,-480.0,0.00019945,2]
[373280056,1752927078467,-2730.74,0.00019945,2]
[373280057,1752927078476,-480.0,0.00019945,2]
[373280058,1752927078485,-480.0,0.00019945,2]
[373280059,1752927078494,-480.0,0.00019945,2]
[373280060,1752927078503,-480.0,0.00019945,2]
[373280061,1752927078512,-480.0,0.00019945,2]
[373280062,1752927078521,-480.0,0.00019945,2]
[373280063,1752927078530,-480.0,0.00019945,2]
[373280064,1752927078539,-249.66,0.00019945,2]
[373280065,1752927078548,-170.71,0.00019945,2]
[373280066,1752927078557,-716.69,0.00019945,2]
[373280067,1752927078566,-480.0,0.00019945,2]
[373280068,1752927078576,-526.79,0.00019945,2]
[373280069,1752927078588,-2050.61,0.00019945,2]
[373280070,1752927078598,-480.0,0.00019945,2]
[373280071,1752927078607,-654.07,0.00019945,2]
[373280072,1752927078616,-480.0,0.00019945,2]
[373280073,1752927078627,-1300.36,0.00019945,2]
[373280074,1752927078636,-696.21,0.00019945,2]
[373280075,1752927078645,-1273.72,0.00019945,2]
[373280076,1752927078655,-480.0,0.00019945,2]
[373280077,1752927078665,-532.37,0.00019945,2]
[373280078,1752927078674,-480.0,0.00019945,2]
[373280079,1752927078688,-8406.08,0.00019945,2]
[373280080,1752927078697,-480.0,0.00019945,2]
[373280081,1752927078706,-3098.53,0.00019945,2]
[373280082,1752927078715,-625.82,0.00019945,2]
[373280083,1752927078725,-779.14,0.00019945,2]
[373280084,1752927078735,-480.0,0.00019945,2]
[373280085,1752927078744,-480.0,0.00019945,2]
[373280086,1752927078754,-493.29,0.00019945,2]
[373280087,1752927078763,-480.0,0.00019945,2]
[373280088,1752927078773,-480.0,0.00019945,2]
[373280089,1752927078783,-480.0,0.00019945,2]
[373280090,1752927078792,-480.0,0.00019945,2]
[373280091,1752927078802,-480.0,0.00019945,2]
[373280092,1752927078811,-480.0,0.00019945,2]
[373280093,1752927078821,-480.0,0.00019945,2]
[373280094,1752927078830,-480.0,0.00019945,2]
[373280095,1752927078839,-4536.51,0.00019945,2]
[373280096,1752927078847,-482.89,0.00019945,2]
[373280097,1752927078856,-480.0,0.00019945,2]
[373280098,1752927078866,-620.34,0.00019945,2]
[373280099,1752927078875,-480.0,0.00019945,2]
[373280100,1752927078884,-480.0,0.00019945,2]
[373280101,1752927078894,-625.37,0.00019945,2]
[373280102,1752927078903,-480.0,0.00019945,2]
[373280103,1752927078912,-480.0,0.00019945,2]
[373280104,1752927078922,-996.66,0.00019945,2]
[373280105,1752927078931,-397.99,0.00019945,2]
[373280106,1752927078940,-7262.97,0.00019945,2]
[373280107,1752927078950,-480.0,0.00019945,2]
[373280108,1752927078959,-480.0,0.00019945,2]
[373280109,1752927078969,-480.0,0.00019945,2]
[373280110,1752927078978,-480.0,0.00019945,2]
[373280111,1752927078987,-480.0,0.00019945,2]
[373280112,1752927078996,-814.82,0.00019945,2]
[373280113,1752927079005,-459.33,0.00019945,2]
[373280114,1752927079015,-814.36,0.00019945,2]
[373280115,1752927079024,-480.0,0.00019945,2]
[373280116,1752927079033,-480.0,0.00019945,2]
[373280117,1752927079042,-495.52,0.00019945,2]
[373280118,1752927079051,-861.88,0.00019945,2]
[373280119,1752927079061,-480.0,0.00019945,2]
[373280120,1752927079070,-480.0,0.00019945,2]
[373280121,1752927079079,-945.47,0.00019945,2]
[373280122,1752927079088,-553.5,0.00019945,2]
[373280123,1752927079097,-480.0,0.00019945,2]
[373280124,1752927079106,-480.0,0.00019945,2]
[373280125,1752927079116,-480.0,0.00019945,2]
[373280126,1752927079125,-519.08,0.00019945,2]
[373280127,1752927079134,-569.84,0.00019945,2]
[373280128,1752927079143,-205.1752743,0.00019981,2]
[373280129,1752927079152,-500.0,0.0002,2]
[373280130,1752927079161,-34534.1892468,0.0002,2]
[373280131,1752927079175,-151.0,0.0002,2]
[373280132,1752927079184,-151.0,0.0002,2]
[373280133,1752927079194,-152.944486,0.0002,2]
[373280134,1752927079203,-151.0,0.0002,2]
[373280135,1752927079212,-151.0,0.0002,2]
[373280136,1752927079222,-24568.80042458,0.0002,12]
[373280137,1752927079232,-164.078823,0.0002,2]
[373280138,1752927079242,-151.0,0.0002,2]
[373280139,1752927079252,-241.07873,0.0002,2]
[373280140,1752927079261,-241.07873,0.0002,2]
[373280141,1752927079271,-151.0,0.0002,2]
[373280142,1752927079279,-4000.0,0.0002,4]
[373280143,1752927079289,-154.821553,0.0002,2]
[373280144,1752927079299,-5069.07706645,0.00020019,2]
[373280145,1752927079309,-5158.87338134,0.00020019,2]
[373280146,1752927079319,-252.0,0.0002005,2]
[373280147,1752927079328,-500.0,0.00020053,2]
[373280148,1752927079338,-500.0,0.00020053,2]
[373280149,1752927079347,-500.0,0.00020053,2]
[373280150,1752927079357,-480.0,0.00020054,2]
[373280151,1752927079366,-480.0,0.00020054,2]
[373280152,1752927079376,-480.0,0.00020054,2]
[373280153,1752927079385,-491.25,0.00020054,2]
[373280154,1752927079394,-480.0,0.00020054,2]
[373280155,1752927079403,-236.601902,0.00020054,2]
[373280156,1752927079413,-151.0,0.00020054,2]
[373280157,1752927079422,-151.0,0.00020054,2]
[373280158,1752927079431,-151.0,0.00020054,2]
[373280159,1752927079439,-480.0,0.00020054,2]
[373280160,1752927079448,-480.0,0.00020054,2]
[373280161,1752927079457,-527.7,0.00020054,2]
[373280162,1752927079469,-151.0,0.00020054,2]
[373280163,1752927079478,-510.82,0.00020054,2]
[373280164,1752927079489,-480.0,0.00020054,2]
[373280165,1752927079499,-480.0,0.00020054,2]
[373280166,1752927079509,-508.37,0.00020054,2]
[373280167,1752927079518,-480.0,0.00020054,2]
[373280168,1752927079527,-480.0,0.00020054,2]
[373280169,1752927079536,-492.22,0.00020054,2]
[373280170,1752927079546,-480.0,0.00020054,2]
[373280171,1752927079555,-480.0,0.00020054,2]
[373280172,1752927079564,-480.0,0.00020054,2]
[373280173,1752927079573,-480.0,0.00020054,2]
[373280174,1752927079587,-564.73,0.00020054,2]
[373280175,1752927079596,-480.0,0.00020054,2]
[373280176,1752927079605,-151.0,0.00020054,2]
[373280177,1752927079615,-480.0,0.00020054,2]
[373280178,1752927079625,-159.485168,0.00020054,2]
[373280179,1752927079634,-159.485168,0.00020054,2]
[373280180,1752927079643,-480.0,0.00020054,2]
[373280181,1752927079653,-480.0,0.00020054,2]
[373280182,1752927079663,-480.0,0.00020054,2]
[373280183,1752927079673,-480.0,0.00020054,2]
[373280184,1752927079683,-480.0,0.00020054,2]
[373280185,1752927079692,-285.75159025,0.00020054,2]
[373280186,1752927079702,-480.0,0.00020054,2]
[373280187,1752927079711,-480.0,0.00020054,2]
[373280188,1752927079723,-480.0,0.00020054,2]
[373280189,1752927079732,-480.0,0.00020054,2]
[373280190,1752927079741,-480.0,0.00020054,2]
[373280191,1752927079751,-480.0,0.00020054,2]
[373280192,1752927079762,-151.0,0.00020054,2]
[373280193,1752927079772,-572.13,0.00020054,2]
[373280194,1752927079782,-480.0,0.00020054,2]
[373280195,1752927079791,-151.0,0.00020054,2]
[373280196,1752927079801,-480.0,0.00020054,2]
[373280197,1752927079811,-480.0,0.00020054,2]
[373280198,1752927079822,-151.0,0.00020054,2]
[373280199,1752927079831,-480.0,0.00020054,2]
[373280200,1752927079840,-480.0,0.00020054,2]
[373280201,1752927079850,-448.36,0.00020054,2]
[373280202,1752927079859,-480.0,0.00020054,2]
[373280203,1752927079869,-480.0,0.00020054,2]
[373280204,1752927079879,-509.18,0.00020054,2]
[373280205,1752927079888,-480.0,0.00020054,2]
[373280206,1752927079897,-1272.92,0.00020054,2]
[373280207,1752927079907,-480.0,0.00020054,2]
[373280208,1752927079916,-480.0,0.00020054,2]
[373280209,1752927079926,-170.630349,0.00020054,2]
[373280210,1752927079935,-480.0,0.00020054,2]
[373280211,1752927079944,-632.75,0.00020054,2]
[373280212,1752927079954,-170.630349,0.00020054,2]
[373280213,1752927079963,-480.0,0.00020054,2]
[373280214,1752927079974,-632.62,0.00020054,2]
[373280215,1752927079984,-480.0,0.00020054,2]
[373280216,1752927079994,-480.0,0.00020054,2]
[373280217,1752927080003,-173.966022,0.00020054,2]
[373280218,1752927080012,-480.0,0.00020054,2]
[373280219,1752927080022,-480.0,0.00020054,2]
[373280220,1752927080031,-679.94,0.00020054,2]
[373280221,1752927080041,-151.0,0.00020054,2]
[373280222,1752927080050,-480.0,0.00020054,2]
[373280223,1752927080059,-1585.57,0.00020054,2]
[373280224,1752927080069,-480.0,0.00020054,2]
[373280225,1752927080079,-503.15,0.00020054,2]
[373280226,1752927080088,-556.02,0.00020054,2]
[373280227,1752927080098,-571.95,0.00020054,2]
[373280228,1752927080108,-480.0,0.00020054,2]
[373280229,1752927080118,-581.29,0.00020054,2]
[373280230,1752927080127,-480.0,0.00020054,2]
[373280231,1752927080137,-480.0,0.00020054,2]
[373280232,1752927080147,-633.45,0.00020054,2]
[373280233,1752927080157,-490.15,0.00020054,2]
[373280234,1752927080168,-480.0,0.00020054,2]
[373280235,1752927080178,-480.0,0.00020054,2]
[373280236,1752927080187,-571.94,0.00020054,2]
[373280237,1752927080197,-1050.85,0.00020054,2]
[373280238,1752927080206,-480.0,0.00020054,2]
[373280239,1752927080219,-151.0,0.00020054,2]
[373280240,1752927080228,-151.0,0.00020054,2]
[373280241,1752927080238,-1313.33,0.00020054,2]
[373280242,1752927080247,-480.0,0.00020054,2]
[373280243,1752927080257,-1036.910079,0.00020054,2]
[373280244,1752927080266,-229.68,0.00020054,2]
[373280245,1752927080276,-480.0,0.00020054,2]
[373280246,1752927080286,-480.0,0.00020054,2]
[373280247,1752927080295,-870.226778,0.00020054,2]
[373280248,1752927080304,-480.0,0.00020054,2]
[373280249,1752927080314,-900.893639,0.00020054,2]
[373280250,1752927080324,-1874.03,0.00020054,2]
[373280251,1752927080333,-480.0,0.00020054,2]
[373280252,1752927080343,-824.64,0.00020054,2]
[373280253,1752927080352,-480.0,0.00020054,2]
[373280254,1752927080362,-502.1,0.00020054,2]
[373280255,1752927080372,-1726.56,0.00020054,2]
[373280256,1752927080382,-480.0,0.00020054,2]
[373280257,1752927080391,-480.0,0.00020054,2]
[373280258,1752927080401,-480.0,0.00020054,2]
[373280259,1752927080410,-3664.0,0.00020054,2]
[373280260,1752927080420,-622.62,0.00020054,2]
[373280261,1752927080429,-480.0,0.00020054,2]
[373280262,1752927080438,-480.0,0.00020054,2]
[373280263,1752927080448,-607.67,0.00020054,2]
[373280264,1752927080457,-480.0,0.00020054,2]
[373280265,1752927080469,-480.0,0.00020054,2]
[373280266,1752927080479,-480.0,0.00020054,2]
[373280267,1752927080488,-622.7,0.00020054,2]
[373280268,1752927080498,-759.29,0.00020054,2]
[373280269,1752927080508,-480.0,0.00020054,2]
[373280270,1752927080517,-1312.07,0.00020054,2]
[373280271,1752927080527,-1939.98,0.00020054,2]
[373280272,1752927080536,-1042.32,0.00020054,2]
[373280273,1752927080545,-480.0,0.00020054,2]
[373280274,1752927080555,-516.59,0.00020054,2]
[373280275,1752927080564,-644.324241,0.00020054,2]
[373280276,1752927080573,-480.0,0.00020054,2]
[373280277,1752927080587,-611.66,0.00020054,2]
[373280278,1752927080596,-151.0,0.00020054,2]
[373280279,1752927080606,-480.0,0.00020054,2]
[373280280,1752927080616,-883.72,0.00020054,2]
[373280281,1752927080626,-644.324241,0.00020054,2]
[373280282,1752927080636,-480.0,0.00020054,2]
[373280283,1752927080646,-480.0,0.00020054,2]
[373280284,1752927080657,-1113.11,0.00020054,2]
[373280285,1752927080667,-480.0,0.00020054,2]
[373280286,1752927080676,-1761.18,0.00020054,2]
[373280287,1752927080686,-247.27,0.00020054,2]
[373280288,1752927080695,-480.0,0.00020054,2]
[373280289,1752927080705,-480.0,0.00020054,2]
[373280290,1752927080717,-671.88,0.00020054,2]
[373280291,1752927080727,-638.9,0.00020054,2]
[373280292,1752927080736,-483.054661,0.00020054,2]
[373280293,1752927080746,-480.0,0.00020054,2]
[373280294,1752927080755,-808.38,0.00020054,2]
[373280295,1752927080765,-237.197416,0.00020054,2]
[373280296,1752927080775,-374.92,0.00020054,2]
[373280297,1752927080785,-483.054661,0.00020054,2]
[373280298,1752927080795,-480.0,0.00020054,2]
[373280299,1752927080804,-587.14,0.00020054,2]
[373280300,1752927080813,-480.0,0.00020054,2]
[373280301,1752927080823,-480.0,0.00020054,2]
[373280302,1752927080833,-480.0,0.00020054,2]
[373280303,1752927080842,-480.0,0.00020054,2]
[373280304,1752927080852,-2730.74,0.00020054,2]
[373280305,1752927080866,-480.0,0.00020054,2]
[373280306,1752927080876,-480.0,0.00020054,2]
[373280307,1752927080886,-480.0,0.00020054,2]
[373280308,1752927080895,-480.0,0.00020054,2]
[373280309,1752927080905,-480.0,0.00020054,2]
[373280310,1752927080915,-480.0,0.00020054,2]
[373280311,1752927080924,-480.0,0.00020054,2]
[373280312,1752927080933,-716.69,0.00020054,2]
[373280313,1752927080943,-480.0,0.00020054,2]
[373280314,1752927080952,-526.79,0.00020054,2]
[373280315,1752927080962,-2050.61,0.00020054,2]
[373280316,1752927080973,-480.0,0.00020054,2]
[373280317,1752927080983,-654.07,0.00020054,2]
[373280318,1752927080992,-480.0,0.00020054,2]
[373280319,1752927081002,-1300.36,0.00020054,2]
[373280320,1752927081011,-696.21,0.00020054,2]
[373280321,1752927081021,-1273.72,0.00020054,2]
[373280322,1752927081030,-480.0,0.00020054,2]
[373280323,1752927081040,-532.37,0.00020054,2]
[373280324,1752927081049,-480.0,0.00020054,2]
[373280325,1752927081059,-8406.08,0.00020054,2]
[373280326,1752927081068,-480.0,0.00020054,2]
[373280327,1752927081078,-3098.53,0.00020054,2]
[373280328,1752927081088,-625.82,0.00020054,2]
[373280329,1752927081097,-779.14,0.00020054,2]
[373280330,1752927081107,-480.0,0.00020054,2]
[373280331,1752927081116,-480.0,0.00020054,2]
[373280332,1752927081126,-480.0,0.00020054,2]
[373280333,1752927081136,-480.0,0.00020054,2]
[373280334,1752927081146,-480.0,0.00020054,2]
[373280335,1752927081156,-480.0,0.00020054,2]
[373280336,1752927081166,-480.0,0.00020054,2]
[373280337,1752927081187,-480.0,0.00020054,2]
[373280338,1752927081197,-480.0,0.00020054,2]
[373280339,1752927081207,-480.0,0.00020054,2]
[373280340,1752927081216,-4536.51,0.00020054,2]
[373280341,1752927081225,-482.89,0.00020054,2]
[373280342,1752927081235,-480.0,0.00020054,2]
[373280343,1752927081245,-620.34,0.00020054,2]
[373280344,1752927081255,-480.0,0.00020054,2]
[373280345,1752927081265,-480.0,0.00020054,2]
[373280346,1752927081275,-625.37,0.00020054,2]
[373280347,1752927081284,-480.0,0.00020054,2]
[373280348,1752927081295,-340.0,0.00020054,2]
[373280349,1752927081304,-7262.97,0.00020054,2]
[373280350,1752927081313,-480.0,0.00020054,2]
[373280351,1752927081323,-480.0,0.00020054,2]
[373280352,1752927081332,-480.0,0.00020054,2]